Workbook

Sheet Signals model
A1: Input variables | B1: Phase 2 | C1: Phase 4 | F1: Queue Accumulation Polygon (QAP)
A2: Arrival rate, v | B2: 500 | C2: 400 | D2: veh/hr
A3: Proportion vehicles arriving on green, P | B3: 0.5 | C3: 0.5 | G3: Phase 2 | I3: Phase 4
A4: Headway of bunched vehicles, Δ | B4: 1.5 | C4: 1.5 | D4: veh/sec | F4: Points on QAP | G4: Queue | H4: Time | I4: Queue | J4: Time
A5: Bunching factor, b | B5: 0.6 | C5: 0.6 | F5: Origin | G5: 0 | H5: 0 | I5: 0 | J5: =B42 -> 17.47896598
A6: Lost time, l1 | B6: 2 | C6: 2 | D6: sec | F6: Maximum queue | G6: =B28 -> 1.845350287 | H6: =B42 -> 17.47896598 | I6: =C28 -> 1.47628023 | J6: =J5+C42 -> 36.50221616
A7: Passage time, PT | B7: 2.5 | C7: 2.5 | D7: sec | F7: Queue at end of green | G7: =G27 ->  | H7: =H6+B29+B34 ->  | I7: =I27 ->  | J7: =J6+C29+C34 -> 
A8: Detection zone length, Lds | B8: 22 | C8: 22 | D8: feet
A9: Vehicle length, Lv | B9: 20 | C9: 20 | D9: feet | F9: Display indications | G9: Queue | H9: Time | I9: Queue | J9: Time
A10: Speed, Sa | B10: 30 | C10: 30 | D10: mi/hr | F10: Red start | G10: 0.2 | H10: 0 | I10: 0.2 | J10: =J5 -> 17.47896598
A11: Maximum green, Gmax | B11: 50 | C11: 50 | D11: sec | F11: Red end | G11: 0.2 | H11: =B44-B14 ->  | I11: 0.2 | J11: =J10+C44 -> 
A12: Minimum green, Gmin | B12: 5 | C12: 5 | D12: sec | F12: Green start | G12: 0.2 | H12: =H11 ->  | I12: 0.2 | J12: =J11 -> 
A13: Yellow time, Y | B13: 3 | C13: 3 | D13: sec | F13: Green end | G13: 0.2 | H13: =H12+B43 ->  | I13: 0.2 | J13: =J12+C43 -> 
A14: Red clearance, Rc | B14: 2 | C14: 2 | D14: sec | F14: Yellow start | G14: 0.2 | H14: =H13 -> 
A15: Saturation flow rate, s | B15: 1900 | C15: 1900 | D15: veh/hr/green | F15: Yellow end | G15: 0.2 | H15: =H14+B13 -> 
F16: Red clear start | G16: 0.2 | H16: =H15 -> 
A17: Intermediate values | F17: Red clear end | G17: 0.2 | H17: =H16+B14 ->  | S17: 1 | U17: 0
A18: Cycle length, C | B18: 26.57304414 | C18: 26.57304414 | D18: sec
A19: Effective green, g | B19: 9.066261293 | C19: 7.506782847 | D19: sec
A20: Effective red, r | B20: 17.50678285 | C20: 19.06626129 | D20: sec | F20: Capacity calculation
F21: Effective green, g | G21: =B41 -> 9.023250176 | I21: =C41 -> 7.478965985
A22: Calculated variables | F22: Cycle length, C | G22: =B40 -> 26.50221616 | I22: =C40 -> 26.50221616
A23: Arrival rate, q | B23: =B2/3600 -> 0.1388888889 | C23: =C2/3600 -> 0.1111111111 | D23: veh/sec | F23: Saturation flow rate, s | G23: =B15 -> 1900 | I23: =C15 -> 1900
A24: Arrival rate during red, qr | B24: =qr(B3,B23,B18,B20) -> 0.1054077327 | C24: =qr(C3,C23,C18,C20) -> 0.07742893099 | D24: veh/sec | F24: Capacity, c | G24: =(G21/G22)*G23 -> 646.8959135 | I24: =(I21/I22)*I23 -> 536.1829096
A25: Arrival rate during green, qg | B25: =qg(B3,B23,B18,B19) -> 0.2035403821 | C25: =qg(C3,C23,C18,C19) -> 0.1966595092 | D25: veh/sec | F25: Arrival rate, v | G25: =B2 -> 500 | I25: =C2 -> 400
A26: Proportion of free vehicles, ϕ | B26: =_xludf.phi(B5,B4,B23) -> 0.8824969026 | C26: =_xludf.phi(C5,C4,C23) -> 0.904837418 | F26: Degree of saturation | G26: =G25/G24 -> 0.7729218713 | I26: =I25/I24 -> 0.74601408
A27: Flow rate parameter, λ | B27: =lambda(B26,B23,B4) -> 0.154824018 | C27: =lambda(C26,C23,C4) -> 0.1206449891 | D27: veh/sec | F27: Queue at end of green | G27: =QueueAtEndOfGreen(B28,B15,B25,B11,B29,B34,B6) ->  | I27: =QueueAtEndOfGreen(C28,C15,C25,C11,C29,C34,C6) -> 
A28: Queue at end of red, Qr | B28: =B24*B20 -> 1.845350287 | C28: =C24*C20 -> 1.47628023 | D28: veh | F28: Uniform delay, sec/veh | G28: =UniformDelay(B2,B42,B29,B28,G27,B34,G22) ->  | I28: =UniformDelay(C2,C42,C29,C28,I27,C34,I22) -> 
A29: Queue service time, gs | B29: =QueueServiceTime(B23,B18,B3,B15,B19,B6,B11,B34) ->  | C29: =QueueServiceTime(C23,C18,C3,C15,C19,C6,C11,C34) ->  | D29: sec
A30: Number of extension before max out, n | B30: =NumberExtensionsBeforeMaxOut(B23,B11,B29,B6) ->  | C30: =NumberExtensionsBeforeMaxOut(C23,C11,C29,C6) ->  | F30: Time calculations | G30: Y-axis | H30: X-axis | I30: Y-axis | J30: X-axis
A31: ProbSubjectPhaseCalled, pv | B31: =ProbSubjectPhaseCalled(B23,B18) -> 0.9750454866 | C31: =ProbSubjectPhaseCalled(C23,C18) -> 0.9477941363 | F31: Red and Phase Duration
A32: MAH | B32: =MAH(B7,B8,B9,B10) -> 3.452380952 | C32: =MAH(C7,C8,C9,C10) -> 3.452380952 | D32: sec | F32: Red display | G32: 3 | H32: 0 | I32: 3
A33: ProbGreenExtension, p | B33: =ProbGreenExtension(B26,B27,B32,B4) -> 0.347716153 | C33: =ProbGreenExtension(C26,C27,C32,C4) -> 0.2850516514 | G33: 3 | H33: =H32+B44-B14 ->  | I33: 3
A34: Green extension, ge | B34: =GreenExtension(B33,B30,B23) ->  | C34: =GreenExtension(C33,C30,C23) ->  | D34: sec | F34: Green display | G34: 3 | H34: =H33 ->  | I34: 3
A35: Effective change interval, Y + Rc | B35: =B13+B14 -> 5 | C35: =C13+C14 -> 5 | D35: sec | G35: 3 | H35: =H34+B43 ->  | I35: 3
A36: Average green interval duration, G | B36: =AvgGreenDuration(B12,B11,B6,B29,B34) ->  | C36: =AvgGreenDuration(C12,C11,C6,C29,C34) ->  | D36: sec | F36: Yellow display | G36: 3 | H36: =H35 -> 
A37: Phase duration, Dp | B37: =B36+B13+B14 ->  | C37: =C36+C13+C14 ->  | D37: sec | G37: 3 | H37: =H36+B13 -> 
F38: Red clearance display | G38: 3 | H38: =H37 -> 
A39: Final values | G39: 3 | H39: =H38+B14 -> 
A40: Cycle length, C | B40: 26.50221616 | C40: 26.50221616 | D40: sec | F40: Cycle length | G40: 4 | H40: 0
A41: Effective green, g | B41: 9.023250176 | C41: 7.478965985 | D41: sec | G41: 4 | H41: =B40 -> 26.50221616
A42: Effective red, r | B42: 17.47896598 | C42: 19.02325018 | D42: sec | F42: Phase duration | G42: 3.2 | H42: =H34 -> 
A43: Displayed green, G | B43: =B6+B29+B34 ->  | C43: =C6+C29+C34 ->  | D43: sec | G43: 3.2 | H43: =H39 -> 
A44: Displayed red, R | B44: =B40-B43-B13 ->  | C44: =C40-C43-C13 ->  | D44: sec
A45: Displayed yellow, Y | B45: =B13 -> 3 | C45: =C13 -> 3 | D45: sec | F45: Effective times
F46: Effective red1 | G46: 2 | H46: 0
G47: 2 | H47: =H46+B42 -> 17.47896598
F48: Effective green | G48: 2 | H48: =H47 -> 17.47896598
G49: 2 | H49: =H48+B41 -> 26.50221616
F50: Effective red2 | G50: 2 | H50: =H49 -> 26.50221616
G51: 2 | H51: =H50+B13+B14-2 -> 29.50221616
F53: Phase duration components
F54: Lost time, l1 | G54: 1 | H54: =B44 -> 
G55: 1 | H55: =H54+B6 -> 
F56: Green service time, gs | G56: 1 | H56: =H55 -> 
G57: 1 | H57: =H56+B29 -> 
F58: Green extension time, ge | G58: 1 | H58: =H57 -> 
G59: 1 | H59: =H58+B34 -> 
F60: Y+Rc | G60: 1 | H60: =H59 -> 
G61: 1 | H61: =H60+B13+B14 -> 

Sheet study-lambda
A1: Study: Lambda, call rate to extend green
A2: Assumed:
A3: Δ | C3: 1.5
A4: b | C4: 0.6
A6: v | B6: q | C6: λ | D6: λ (veh/hr)
A7: 0 | B7: =A7/3600 -> 0 | C7: =(B7*EXP(-0.9*B7))/(1-1.5*B7) -> 0 | D7: =C7*3600 -> 0
A8: 50 | B8: =A8/3600 -> 0.01388888889 | C8: =(B8*EXP(-0.9*B8))/(1-1.5*B8) -> 0.01400819575 | D8: =C8*3600 -> 50.42950471
A9: 100 | B9: 0.02777777778 | C9: 0.02826985252 | D9: 101.7714691
A10: 150 | B10: 0.04166666667 | C10: 0.04280864079 | D10: 154.1111068
A11: 200 | B11: 0.05555555556 | C11: 0.05765026815 | D11: 207.5409653
A12: 250 | B12: 0.06944444444 | C12: 0.07282271805 | D12: 262.161785
A13: 300 | B13: 0.08333333333 | C13: 0.08835652251 | D13: 318.083481
A14: 350 | B14: 0.09722222222 | C14: 0.1042850748 | D14: 375.4262694
A15: 400 | B15: 0.1111111111 | C15: 0.1206449891 | D15: 434.3219607
A16: 450 | B16: 0.125 | C16: 0.1374765149 | D16: 494.9154538
A17: 500 | B17: 0.1388888889 | C17: 0.154824018 | D17: 557.3664648
A18: 550 | B18: 0.1527777778 | C18: 0.1727365378 | D18: 621.8515362
A19: 600 | B19: 0.1666666667 | C19: 0.1912684392 | D19: 688.5663811
A20: 650 | B20: 0.1805555556 | C20: 0.2104801747 | D20: 757.728629
A21: 700 | B21: 0.1944444444 | C21: 0.2304391822 | D21: 829.5810558
A22: 750 | B22: 0.2083333333 | C22: 0.2512209449 | D22: 904.3954017
A23: 800 | B23: 0.2222222222 | C23: 0.272910251 | D23: 982.4769037
A24: 850 | B24: 0.2361111111 | C24: 0.2956026963 | D24: 1064.169707
A25: 900 | B25: 0.25 | C25: 0.3194064875 | D25: 1149.863355
A26: 950 | B26: 0.2638888889 | C26: 0.344444619 | D26: 1240.000629
A27: 1000 | B27: 0.2777777778 | C27: 0.3708575157 | D27: 1335.087057
A29: Reflections:
A30: 1. The effect of bunching increases as the arrival flow rate increases.
A31: 2. Little or no effect when arrival rate is below 250 veh/hr.
A32: 3. At 750 veh/hr, the difference becomes substantial: the flow rate parameter is 20 percent higher than the arrival flow rate.

Sheet study-queue service time
A1: Study: Queue service time
A2: Assumed:
A3: C | B3: 60 | C3: sec
A4: s | B4: 1900 | C4: veh/hr
A5: g/C | B5: 0.5
A6: g | B6: =B5*B3 -> 30
B8: P | C8: 0.25 | D8: 0.5 | E8: 0.75
A9: v | B9: q | C9: gs | D9: gs | E9: gs
A10: 0 | B10: =A10/3600 -> 0 | C10: =QueueServiceTime($B10,$B$3,C$8,$B$4,$B$6,2,50,1) -> 0 | D10: =QueueServiceTime($B10,$B$3,D$8,$B$4,$B$6,2,50,1) -> 0 | E10: 0
A11: 50 | B11: =A11/3600 -> 0.01388888889 | C11: =QueueServiceTime($B11,$B$3,C$8,$B$4,$B$6,2,50,1) -> 1.2 | D11: 0.8108108108 | E11: 0.4109589041
A12: 100 | B12: 0.02777777778 | C12: 2.432432432 | D12: 1.666666667 | E12: 0.8571428571
A13: 150 | B13: 0.04166666667 | C13: 3.698630137 | D13: 2.571428571 | E13: 1.343283582
A14: 200 | B14: 0.05555555556 | C14: 5 | D14: 3.529411765 | E14: 1.875
A15: 250 | B15: 0.06944444444 | C15: 6.338028169 | D15: 4.545454545 | E15: 2.459016393
A16: 300 | B16: 0.08333333333 | C16: 7.714285714 | D16: 5.625 | E16: 3.103448276
A17: 350 | B17: 0.09722222222 | C17: 9.130434783 | D17: 6.774193548 | E17: 3.818181818
A18: 400 | B18: 0.1111111111 | C18: 10.58823529 | D18: 8 | E18: 4.615384615
A19: 450 | B19: 0.125 | C19: 12.08955224 | D19: 9.310344828 | E19: 5.510204082
A20: 500 | B20: 0.1388888889 | C20: 13.63636364 | D20: 10.71428571 | E20: 6.52173913
A21: 550 | B21: 0.1527777778 | C21: 15.23076923 | D21: 12.22222222 | E21: 7.674418605
A22: 600 | B22: 0.1666666667 | C22: 16.875 | D22: 13.84615385 | E22: 9
A23: 650 | B23: 0.1805555556 | C23: 18.57142857 | D23: 15.6 | E23: 10.54054054
A24: 700 | B24: 0.1944444444 | C24: 20.32258065 | D24: 17.5 | E24: 12.35294118
A25: 750 | B25: 0.2083333333 | C25: 22.13114754 | D25: 19.56521739 | E25: 14.51612903
A26: 800 | B26: 0.2222222222 | C26: 24 | D26: 21.81818182 | E26: 17.14285714
A27: 850 | B27: 0.2361111111 | C27: 25.93220339 | D27: 24.28571429 | E27: 20.4
A28: 900 | B28: 0.25 | C28: 27.93103448 | D28: 27 | E28: 24.54545455
A30: Reflections
A31: 1. The higher the P (proportion arriving on green), the lower the queue service time.

Sheet study-MAH
A1: Study: Maximum Allowable Headway
A2: Assumed
A3: Lv | B3: 20 | C3: ft
A4: Sa | B4: 25 | C4: mi/hr
A7: PT | B7: 1.5 | C7: 2 | D7: 2.5 | E7: 3
A8: Lds | B8: MAH | C8: MAH | D8: MAH | E8: MAH
A9: 22 | B9: =B$7+($A9+$B$3)/(1.47*$B$4) -> 2.642857143 | C9: =C$7+($A9+$B$3)/(1.47*$B$4) -> 3.142857143 | D9: 3.642857143 | E9: 4.142857143
A10: 44 | B10: =B$7+($A10+$B$3)/(1.47*$B$4) -> 3.241496599 | C10: 3.741496599 | D10: 4.241496599 | E10: 4.741496599
A11: 66 | B11: 3.840136054 | C11: 4.340136054 | D11: 4.840136054 | E11: 5.340136054
A12: 88 | B12: 4.43877551 | C12: 4.93877551 | D12: 5.43877551 | E12: 5.93877551

Sheet study-extensions before max out
A1: Study: Number of extensions before maxout
A2: Assumed:
A3: C | B3: 60 | C3: sec
A4: s | B4: 1900 | C4: veh/hr
A5: g/C | B5: 0.5
A6: g | B6: =B5*B3 -> 30 | C6: sec
A7: Gmax | B7: 50 | C7: sec
A8: l1 | B8: 2 | C8: sec
B10: P | C10: 0.25 | D10: 0.5 | E10: 0.75 | G10: P | H10: 0.25 | I10: 0.5 | J10: 0.75
A11: v | B11: q | C11: gs | D11: gs | E11: gs | H11: n | I11: n | J11: n
A12: 0 | B12: =A12/3600 -> 0 | C12: =QueueServiceTime($B12,$B$3,C$10,$B$4,$B$6,2,50,1) -> 0 | D12: =QueueServiceTime($B12,$B$3,D$10,$B$4,$B$6,2,50,1) -> 0 | E12: 0 | H12: =$B12*($B$7-C12-$B$8) -> 0 | I12: =$B12*($B$7-D12-$B$8) -> 0 | J12: 0
A13: 50 | B13: =A13/3600 -> 0.01388888889 | C13: =QueueServiceTime($B13,$B$3,C$10,$B$4,$B$6,2,50,1) -> 1.2 | D13: 0.8108108108 | E13: 0.4109589041 | H13: =$B13*($B$7-C13-$B$8) -> 0.65 | I13: 0.6554054054 | J13: 0.6609589041
A14: 100 | B14: 0.02777777778 | C14: 2.432432432 | D14: 1.666666667 | E14: 0.8571428571 | H14: 1.265765766 | I14: 1.287037037 | J14: 1.30952381
A15: 150 | B15: 0.04166666667 | C15: 3.698630137 | D15: 2.571428571 | E15: 1.343283582 | H15: 1.845890411 | I15: 1.892857143 | J15: 1.944029851
A16: 200 | B16: 0.05555555556 | C16: 5 | D16: 3.529411765 | E16: 1.875 | H16: 2.388888889 | I16: 2.470588235 | J16: 2.5625
A17: 250 | B17: 0.06944444444 | C17: 6.338028169 | D17: 4.545454545 | E17: 2.459016393 | H17: 2.893192488 | I17: 3.017676768 | J17: 3.162568306
A18: 300 | B18: 0.08333333333 | C18: 7.714285714 | D18: 5.625 | E18: 3.103448276 | H18: 3.357142857 | I18: 3.53125 | J18: 3.74137931
A19: 350 | B19: 0.09722222222 | C19: 9.130434783 | D19: 6.774193548 | E19: 3.818181818 | H19: 3.778985507 | I19: 4.008064516 | J19: 4.295454545
A20: 400 | B20: 0.1111111111 | C20: 10.58823529 | D20: 8 | E20: 4.615384615 | H20: 4.156862745 | I20: 4.444444444 | J20: 4.820512821
A21: 450 | B21: 0.125 | C21: 12.08955224 | D21: 9.310344828 | E21: 5.510204082 | H21: 4.48880597 | I21: 4.836206897 | J21: 5.31122449
A22: 500 | B22: 0.1388888889 | C22: 13.63636364 | D22: 10.71428571 | E22: 6.52173913 | H22: 4.772727273 | I22: 5.178571429 | J22: 5.760869565
A23: 550 | B23: 0.1527777778 | C23: 15.23076923 | D23: 12.22222222 | E23: 7.674418605 | H23: 5.006410256 | I23: 5.466049383 | J23: 6.160852713
A24: 600 | B24: 0.1666666667 | C24: 16.875 | D24: 13.84615385 | E24: 9 | H24: 5.1875 | I24: 5.692307692 | J24: 6.5
A25: 650 | B25: 0.1805555556 | C25: 18.57142857 | D25: 15.6 | E25: 10.54054054 | H25: 5.313492063 | I25: 5.85 | J25: 6.763513514
A26: 700 | B26: 0.1944444444 | C26: 20.32258065 | D26: 17.5 | E26: 12.35294118 | H26: 5.38172043 | I26: 5.930555556 | J26: 6.931372549
A27: 750 | B27: 0.2083333333 | C27: 22.13114754 | D27: 19.56521739 | E27: 14.51612903 | H27: 5.389344262 | I27: 5.923913043 | J27: 6.975806452
A28: 800 | B28: 0.2222222222 | C28: 24 | D28: 21.81818182 | E28: 17.14285714 | H28: 5.333333333 | I28: =$B28*($B$7-D28-$B$8) -> 5.818181818 | J28: =$B28*($B$7-E28-$B$8) -> 6.857142857
A29: 850 | B29: 0.2361111111 | C29: 25.93220339 | D29: 24.28571429 | E29: 20.4 | H29: 5.210451977 | I29: 5.599206349 | J29: 6.516666667
A30: 900 | B30: 0.25 | C30: 27.93103448 | D30: 27 | E30: 24.54545455 | H30: 5.017241379 | I30: 5.25 | J30: 5.863636364
A32: Reflections
A33: 1. ???

Sheet study-probability of green ext
A1: Study: Probability of green extension
A2: Assumed:
A3: C | B3: 60 | C3: sec
A4: s | B4: 1900 | C4: veh/hr
A5: g/C | B5: 0.5
A6: g | B6: =B5*B3 -> 30 | C6: sec
A7: Δ | B7: 1.5
A8: b | B8: 0.6
A9: MAH | B9: 3 | C9: sec
A11: v | B11: q | C11: ϕ | D11: λ | E11: λ (veh/hr) | F11: p
A12: 0 | B12: =A12/3600 -> 0 | C12: =EXP(-$B$8*$B$7*B12) -> 1 | D12: =(B12*EXP(-0.9*B12))/(1-1.5*B12) -> 0 | E12: =D12*3600 -> 0 | F12: =1-C12*EXP(-D12*($B$9-$B$7)) -> 0
A13: 50 | B13: =A13/3600 -> 0.01388888889 | C13: =EXP(-$B$8*$B$7*B13) -> 0.9875778005 | D13: =(B13*EXP(-0.9*B13))/(1-1.5*B13) -> 0.01400819575 | E13: =D13*3600 -> 50.42950471 | F13: =1-C13*EXP(-D13*($B$9-$B$7)) -> 0.03295697731
A14: 100 | B14: 0.02777777778 | C14: 0.975309912 | D14: 0.02826985252 | E14: 101.7714691 | F14: 0.06518326924
A15: 150 | B15: 0.04166666667 | C15: 0.9631944177 | D15: 0.04280864079 | E15: 154.1111068 | F15: 0.09671120659
A16: 200 | B16: 0.05555555556 | C16: 0.9512294245 | D16: 0.05765026815 | E16: 207.5409653 | F16: 0.1275722202
A17: 250 | B17: 0.06944444444 | C17: 0.9394130628 | D17: 0.07282271805 | E17: 262.161785 | F17: 0.1577968955
A18: 300 | B18: 0.08333333333 | C18: 0.9277434863 | D18: 0.08835652251 | E18: 318.083481 | F18: 0.1874150235
A19: 350 | B19: 0.09722222222 | C19: 0.9162188717 | D19: 0.1042850748 | E19: 375.4262694 | F19: 0.2164556488
A20: 400 | B20: 0.1111111111 | C20: 0.904837418 | D20: 0.1206449891 | E20: 434.3219607 | F20: 0.2449471133
A21: 450 | B21: 0.125 | C21: 0.8935973471 | D21: 0.1374765149 | E21: 494.9154538 | F21: 0.2729170962
A22: 500 | B22: 0.1388888889 | C22: 0.8824969026 | D22: 0.154824018 | E22: 557.3664648 | F22: 0.300392648
A23: 550 | B23: 0.1527777778 | C23: 0.87153435 | D23: 0.1727365378 | E23: 621.8515362 | F23: 0.32740022
A24: 600 | B24: 0.1666666667 | C24: 0.8607079764 | D24: 0.1912684392 | E24: 688.5663811 | F24: 0.3539656859
A25: 650 | B25: 0.1805555556 | C25: 0.8500160902 | D25: 0.2104801747 | E25: 757.728629 | F25: 0.3801143554
A26: 700 | B26: 0.1944444444 | C26: 0.8394570208 | D26: 0.2304391822 | E26: 829.5810558 | F26: 0.4058709773
A27: 750 | B27: 0.2083333333 | C27: 0.8290291182 | D27: 0.2512209449 | E27: 904.3954017 | F27: 0.4312597305
A28: 800 | B28: 0.2222222222 | C28: 0.8187307531 | D28: 0.272910251 | E28: 982.4769037 | F28: 0.4563041983
A29: 850 | B29: 0.2361111111 | C29: 0.8085603163 | D29: 0.2956026963 | E29: 1064.169707 | F29: 0.4810273239
A30: 900 | B30: 0.25 | C30: 0.7985162188 | D30: 0.3194064875 | E30: 1149.863355 | F30: 0.5054513405
A31: 950 | B31: 0.2638888889 | C31: 0.788596891 | D31: 0.344444619 | E31: 1240.000629 | F31: 0.5295976697
A32: 1000 | B32: 0.2777777778 | C32: 0.7788007831 | D32: 0.3708575157 | E32: 1335.087057 | F32: 0.5534867812
A36: Reflections
A37: 1. ???

Sheet study-green ext time
A1: Study: Green extension time
A2: Assumed:
A3: C | B3: 60 | C3: sec
A4: s | B4: 1900 | C4: veh/hr
A5: g/C | B5: 0.5
A6: g | B6: =B5*B3 -> 30 | C6: sec
A7: Δ | B7: 1.5
A8: b | B8: 0.6
A9: MAH | B9: 3 | C9: sec
A11: v | B11: q | C11: ϕ | D11: λ | E11: λ (veh/hr) | F11: p | G11: gs | H11: n | I11: ge
A12: 1 | B12: =A12/3600 -> 0.0002777777778 | C12: =EXP(-$B$8*$B$7*B12) -> 0.9997500312 | D12: =(B12*EXP(-0.9*B12))/(1-1.5*B12) -> 0.0002778241021 | E12: =D12*3600 -> 1.000166767 | F12: =1-C12*EXP(-D12*($B$9-$B$7)) -> 0.0006665139339 | G12: =QueueServiceTime(B12,$B$3,F12,$B$4,$B$6,2,50,2) -> 0.0315579217 | H12: =B12*(50-G12-2) -> 0.01332456724 | I12: =((F12^2)*(1-F12^H12))/(B12*(1-F12)) -> 0.0001485925548
A13: 50 | B13: =A13/3600 -> 0.01388888889 | C13: =EXP(-$B$8*$B$7*B13) -> 0.9875778005 | D13: =(B13*EXP(-0.9*B13))/(1-1.5*B13) -> 0.01400819575 | E13: =D13*3600 -> 50.42950471 | F13: =1-C13*EXP(-D13*($B$9-$B$7)) -> 0.03295697731 | G13: =QueueServiceTime(B13,$B$3,F13,$B$4,$B$6,2,50,2) -> 1.529563182 | H13: =B13*(50-G13-2) -> 0.6454227336 | I13: =((F13^2)*(1-F13^H13))/(B13*(1-F13)) -> 0.07193107606
A14: 100 | B14: 0.02777777778 | C14: 0.975309912 | D14: 0.02826985252 | E14: 101.7714691 | F14: 0.06518326924 | G14: 2.972447979 | H14: 1.250765334 | I14: 0.1582466109
A15: 150 | B15: 0.04166666667 | C15: 0.9631944177 | D15: 0.04280864079 | E15: 154.1111068 | F15: 0.09671120659 | G15: 4.345086691 | H15: 1.818954721 | I15: 0.2449589091
A16: 200 | B16: 0.05555555556 | C16: 0.9512294245 | D16: 0.05765026815 | E16: 207.5409653 | F16: 0.1275722202 | G16: =QueueServiceTime(B16,$B$3,F16,$B$4,$B$6,2,50,2) -> 5.662140036 | H16: =B16*(50-G16-2) -> 2.352103331 | I16: =((F16^2)*(1-F16^H16))/(B16*(1-F16)) -> 0.3331336478
A17: 250 | B17: 0.06944444444 | C17: 0.9394130628 | D17: 0.07282271805 | E17: 262.161785 | F17: 0.1577968955 | G17: 6.937035747 | H17: 2.85159474 | I17: 0.4235380351
A18: 300 | B18: 0.08333333333 | C18: 0.9277434863 | D18: 0.08835652251 | E18: 318.083481 | F18: 0.1874150235 | G18: 8.182440497 | H18: 3.318129959 | I18: 0.5167015531
A19: 350 | B19: 0.09722222222 | C19: 0.9162188717 | D19: 0.1042850748 | E19: 375.4262694 | F19: 0.2164556488 | G19: 9.410700456 | H19: 3.751737456 | I19: 0.6130734057
A20: 400 | B20: 0.1111111111 | C20: 0.904837418 | D20: 0.1206449891 | E20: 434.3219607 | F20: 0.2449471133 | G20: 10.63428366 | H20: 4.15174626 | I20: 0.7130911601
A21: 450 | B21: 0.125 | C21: 0.8935973471 | D21: 0.1374765149 | E21: 494.9154538 | F21: 0.2729170962 | G21: 11.86625946 | H21: 4.516717568 | I21: 0.8172108373
A22: 500 | B22: 0.1388888889 | C22: 0.8824969026 | D22: 0.154824018 | E22: 557.3664648 | F22: 0.300392648 | G22: 13.12085777 | H22: 4.844325309 | I22: 0.9259208425
A23: 550 | B23: 0.1527777778 | C23: 0.87153435 | D23: 0.1727365378 | E23: 621.8515362 | F23: 0.32740022 | G23: 14.41416507 | H23: 5.131169225 | I23: 1.039746768
A24: 600 | B24: 0.1666666667 | C24: 0.8607079764 | D24: 0.1912684392 | E24: 688.5663811 | F24: 0.3539656859 | G24: 15.76503942 | H24: 5.37249343 | I24: 1.159246734
A25: 650 | B25: 0.1805555556 | C25: 0.8500160902 | D25: 0.2104801747 | E25: 757.728629 | F25: 0.3801143554 | G25: 17.19637026 | H25: 5.561766481 | I25: 1.284990555
A26: 700 | B26: 0.1944444444 | C26: 0.8394570208 | D26: 0.2304391822 | E26: 829.5810558 | F26: 0.4058709773 | G26: 18.73688381 | H26: 5.690050371 | I26: 1.41750525
A27: 750 | B27: 0.2083333333 | C27: 0.8290291182 | D27: 0.2512209449 | E27: 904.3954017 | F27: 0.4312597305 | G27: 20.42382861 | H27: 5.745035706 | I27: 1.557144962
A28: 800 | B28: 0.2222222222 | C28: 0.8187307531 | D28: 0.272910251 | E28: 982.4769037 | F28: 0.4563041983 | G28: 22.30712213 | H28: 5.709528415 | I28: 1.703780648
A29: 850 | B29: 0.2361111111 | C29: 0.8085603163 | D29: 0.2956026963 | E29: 1064.169707 | F29: 0.4810273239 | G29: 24.45601264 | H29: 5.558997016 | I29: 1.856028606
A30: 900 | B30: 0.25 | C30: 0.7985162188 | D30: 0.3194064875 | E30: 1149.863355 | F30: 0.5054513405 | G30: 26.97027105 | H30: 5.257432238 | I30: 2.009187009
A31: 950 | B31: 0.2638888889 | C31: 0.788596891 | D31: 0.344444619 | E31: 1240.000629 | F31: 0.5295976697 | G31: 30 | H31: 4.75 | I31: 2.149100748
A32: 1000 | B32: 0.2777777778 | C32: 0.7788007831 | D32: 0.3708575157 | E32: 1335.087057 | F32: 0.5534867812 | G32: 33.78297602 | H32: 3.949173327 | I32: 2.231044959
A36: Reflections
A37: 1. ???

Sheet study-probability of phase call
A1: Study: Green extension time
A2: Assumed:
A3: C | B3: 60 | C3: sec
A4: s | B4: 1900 | C4: veh/hr
A5: g/C | B5: 0.5
A6: g | B6: =B5*B3 -> 30 | C6: sec
A7: Δ | B7: 1.5
A8: b | B8: 0.6
A9: MAH | B9: 3 | C9: sec
A11: v | B11: q | C11: pv
A12: 1 | B12: =A12/3600 -> 0.0002777777778 | C12: =1-EXP(-B12*$B$3) -> 0.01652854618
A13: 50 | B13: =A13/3600 -> 0.01388888889 | C13: =1-EXP(-B13*$B$3) -> 0.5654017915
A14: 100 | B14: 0.02777777778 | C14: 0.8111243972
A15: 150 | B15: 0.04166666667 | C15: 0.9179150014
A16: 200 | B16: 0.05555555556 | C16: 0.9643260067
A17: 250 | B17: 0.06944444444 | C17: 0.9844961464
A18: 300 | B18: 0.08333333333 | C18: 0.993262053
A19: 350 | B19: 0.09722222222 | C19: 0.9970717003
A20: 400 | B20: 0.1111111111 | C20: 0.9987273662
A21: 450 | B21: 0.125 | C21: 0.9994469156
A22: 500 | B22: 0.1388888889 | C22: 0.9997596305
A23: 550 | B23: 0.1527777778 | C23: 0.9998955359
A24: 600 | B24: 0.1666666667 | C24: 0.9999546001
A25: 650 | B25: 0.1805555556 | C25: 0.9999802693
A26: 700 | B26: 0.1944444444 | C26: 0.9999914251
A27: 750 | B27: 0.2083333333 | C27: 0.9999962733
A28: 800 | B28: 0.2222222222 | C28: 0.9999983804
A29: 850 | B29: 0.2361111111 | C29: 0.9999992961
A30: 900 | B30: 0.25 | C30: 0.9999996941
A31: 950 | B31: 0.2638888889 | C31: 0.9999998671
A32: 1000 | B32: 0.2777777778 | C32: 0.9999999422
A36: Reflections
A37: 1. ???
